fUSD/lending_fUSD_20260205
["ID","MTS","AMOUNT","RATE_DAILY","PERIOD"]
[404531652,1770255032458,-2055.43133128,0.00012634,2]
[404531664,1770255038260,-722.59000029,0.00012634,2]
[404531667,1770255038402,-740.19967929,0.00012634,2]
[404531668,1770255038412,-336.0,0.00012646,2]
[404531669,1770255038423,-1200.0,0.00012664,2]
[404531670,1770255038434,-1000.0,0.00012665,2]
[404531671,1770255038444,-300.0,0.0001267,2]
[404531672,1770255038454,-250.0,0.00012671,2]
[404531673,1770255038464,-300.0,0.00012671,2]
[404531674,1770255038475,-300.0,0.00012671,2]
[404531675,1770255038485,-300.0,0.00012671,2]
[404531676,1770255038495,-800.0,0.000127,4]
[404531677,1770255038504,-1300.0,0.000128,4]
[404531678,1770255038514,-172.32,0.00012815,2]
[404531679,1770255038524,-220.0,0.00012866,2]
[404531680,1770255038535,-1955.0,0.00012883,2]
[404531681,1770255038544,-492.0,0.00012891,2]
[404531682,1770255038554,-166.31,0.000129,2]
[404531683,1770255038563,-1700.0,0.000129,4]
[404531684,1770255038573,-354.0,0.00012908,2]
[404531685,1770255038583,-500.0,0.00012917,2]
[404531686,1770255038592,-172.32,0.00012928,2]
[404531687,1770255038602,-240.42291772,0.00012947,2]
[404531688,1770255038611,-387.90755948,0.00013029,2]
[404531689,1770255038624,-172.32,0.0001304,2]
[404531690,1770255038634,-1105.0,0.000131,2]
[404531691,1770255038644,-150.0,0.000131,2]
[404531692,1770255038654,-1497.3645738,0.00013126,2]
[404531693,1770255038663,-172.32,0.00013152,2]
[404531694,1770255038673,-172.32,0.00013264,2]
[404531695,1770255038683,-338.64624432,0.00013279,2]
[404531697,1770255038692,-2500.0,0.00013395,2]
[404531699,1770255038701,-604.0,0.00013479,2]
[404531701,1770255038711,-920.16610972,0.00013485,2]
[404531703,1770255038721,-1001.51662944,0.00013485,2]
[404531704,1770255038730,-387.90755948,0.00013486,2]
[404531705,1770255038739,-23093.23435414,0.00013486,2]
[404531706,1770255038748,-1241.63828308,0.00013486,2]
[404531707,1770255038760,-4500.46975903,0.00013486,2]
[404531708,1770255038770,-4708.21263554,0.00013486,2]
[404531709,1770255038779,-176.27491577,0.00013494,2]
[404531710,1770255038789,-500.0,0.00013494,2]
[404531711,1770255038798,-2736143.27927551,0.00013495,2]
[404531712,1770255038809,-7963.66379406,0.00013495,2]
[404531713,1770255038820,-2165.0,0.00013495,2]
[404531714,1770255038831,-993.34152341,0.00013495,2]
[404531715,1770255038842,-1443.91995702,0.00013495,2]
[404531716,1770255038853,-1204.73596051,0.00013495,2]
[404531717,1770255040336,-445.86256636,0.00013495,2]
[404531720,1770255040347,-90264.4699349,0.00013495,2]
[404531722,1770255040358,-3531.35,0.00013495,2]
[404531727,1770255040675,-655844.37698823,0.00013495,2]
[404531728,1770255040684,-500.0,0.00013586,2]
[404531730,1770255040694,-200.0,0.00013586,2]
[404531732,1770255040703,-500.0,0.00013586,2]
[404531735,1770255040712,-500.0,0.00013586,2]
[404531737,1770255040727,-500.0,0.00013586,2]
[404531739,1770255040736,-500.0,0.00013586,2]
[404531741,1770255040745,-500.0,0.00013586,2]
[404531743,1770255040754,-500.0,0.00013586,2]
[404531745,1770255040763,-500.0,0.00013586,2]
[404531747,1770255040772,-151.0,0.00013586,2]
[404531749,1770255040781,-500.0,0.00013586,2]
[404531751,1770255040790,-151.0,0.00013586,2]
[404531753,1770255040799,-500.0,0.00013586,2]
[404531755,1770255040809,-151.0,0.00013586,2]
[404531757,1770255040818,-151.0,0.00013586,2]
[404531759,1770255040827,-500.0,0.00013586,2]
[404531760,1770255040836,-151.0,0.00013586,2]
[404531762,1770255040846,-500.0,0.00013586,2]
[404531764,1770255040855,-151.0,0.00013586,2]
[404531768,1770255040876,-500.0,0.00013586,2]
[404531770,1770255040886,-151.0,0.00013586,2]
[404531772,1770255040896,-151.0,0.00013586,2]
[404531774,1770255040906,-151.0,0.00013586,2]
[404531776,1770255040915,-151.0,0.00013586,2]
[404531778,1770255040925,-151.0,0.00013586,2]
[404531780,1770255040934,-151.0,0.00013586,2]
[404531782,1770255040943,-151.0,0.00013586,2]
[404531784,1770255040952,-151.0,0.00013586,2]
[404531786,1770255040961,-151.0,0.00013586,2]
[404531788,1770255040970,-151.0,0.00013586,2]
[404531790,1770255040980,-151.0,0.00013586,2]
[404531792,1770255040989,-151.0,0.00013586,2]
[404531794,1770255040999,-151.0,0.00013586,2]
[404531796,1770255041008,-151.0,0.00013586,2]
[404531798,1770255041017,-151.0,0.00013586,2]
[404531800,1770255041027,-151.0,0.00013586,2]
[404531802,1770255041036,-151.0,0.00013586,2]
[404531803,1770255041046,-151.0,0.00013586,2]
[404531804,1770255041055,-151.0,0.00013586,2]
[404531805,1770255041067,-500.0,0.00013586,2]
[404531806,1770255041077,-151.0,0.00013586,2]
[404531807,1770255041086,-151.0,0.00013586,2]
[404531808,1770255041096,-500.0,0.00013586,2]
[404531809,1770255041106,-151.0,0.00013586,2]
[404531810,1770255041119,-151.0,0.00013586,2]
[404531811,1770255041131,-500.0,0.00013586,2]
[404531812,1770255041141,-151.0,0.00013586,2]
[404531813,1770255041151,-151.0,0.00013586,2]
[404531814,1770255041161,-500.0,0.00013586,2]
[404531815,1770255041170,-500.0,0.00013586,2]
[404531816,1770255041180,-500.0,0.00013586,2]
[404531817,1770255041189,-500.0,0.00013586,2]
[404531818,1770255041199,-500.0,0.00013586,2]
[404531819,1770255041208,-500.0,0.00013586,2]
[404531820,1770255041217,-500.0,0.00013586,2]
[404531821,1770255041226,-500.0,0.00013586,2]
[404531822,1770255041235,-200.0,0.00013586,2]
[404531823,1770255041244,-500.0,0.00013586,2]
[404531824,1770255041254,-240.42291772,0.00013594,2]
[404531825,1770255041263,-245.0,0.00013594,3]
[404531826,1770255041272,-4392.13524321,0.00013594,2]
[404531827,1770255041281,-240.42291772,0.00013595,2]
[404531828,1770255041290,-246.47452284,0.000136,2]
[404531829,1770255041299,-2064.55,0.00013608,2]
[404531830,1770255041309,-1100.186,0.00013665,2]
[404531831,1770255041318,-166.3755669,0.00013665,2]
[404531832,1770255041327,-260.34861082,0.00013665,3]
[404531833,1770255041336,-178.59,0.00013699,2]
[404531834,1770255041346,-920.16610972,0.00013756,2]
[404531835,1770255041355,-3159.9548,0.00013766,2]
[404531836,1770255041365,-23688.3525,0.00013766,2]
[404531837,1770255041375,-193.0,0.00013769,2]
[404531838,1770255041384,-500.0,0.00013769,2]
[404531839,1770255041392,-250.0,0.00013769,2]
[404531840,1770255041402,-300.0,0.00013769,2]
[404531841,1770255041410,-600.0,0.00013769,2]
[404531842,1770255041419,-600.0,0.00013769,2]
[404531843,1770255041429,-201.56578589,0.00013769,2]
[404531844,1770255041438,-300.89,0.00013846,2]
[404531845,1770255041447,-162.69,0.00013858,2]
[404531846,1770255041456,-500.0,0.0001386,2]
[404531847,1770255041465,-500.0,0.00013866,2]
[404531848,1770255041474,-500.0,0.00013866,2]
[404531849,1770255041482,-500.0,0.00013866,2]
[404531850,1770255041491,-500.0,0.00013866,2]
[404531851,1770255041501,-500.0,0.00013866,2]
[404531852,1770255041510,-500.0,0.00013866,2]
[404531853,1770255041520,-500.0,0.00013866,2]
[404531854,1770255041529,-500.0,0.00013866,2]
[404531855,1770255041539,-500.0,0.00013866,2]
[404531856,1770255041548,-500.0,0.00013866,2]
[404531857,1770255041558,-500.0,0.00013866,2]
[404531858,1770255041567,-500.0,0.00013866,2]
[404531859,1770255041577,-500.0,0.00013866,2]
[404531860,1770255041586,-275.55124694,0.00013866,2]
[404531861,1770255041595,-420.0,0.00013899,2]
[404531862,1770255041605,-23093.23435408,0.00013921,2]
[404531863,1770255041614,-1680.0,0.0001393,2]
[404531864,1770255041625,-323.30280583,0.00014093,2]
[404531865,1770255041634,-853.20121973,0.00014093,2]
[404531866,1770255041644,-1505.14808478,0.00014093,2]
[404531867,1770255041653,-7708.0,0.000141,2]
[404531868,1770255041662,-4500.469759,0.00014117,2]
[404531869,1770255041671,-162.69,0.00014132,2]
[404531870,1770255041679,-500.0,0.00014134,2]
[404531871,1770255041688,-500.0,0.00014134,2]
[404531872,1770255041697,-200.0,0.00014134,2]
[404531873,1770255041706,-200.0,0.00014134,2]
[404531874,1770255041715,-5002.38943939,0.00014184,2]
[404531875,1770255041724,-255.0,0.00014214,2]
[404531876,1770255041733,-1000.0,0.00014248,2]
[404531877,1770255041742,-6997.0038,0.00014301,2]
[404531878,1770255041751,-739.0,0.00014336,2]
[404531879,1770255041760,-23093.23435408,0.00014356,2]
[404531880,1770255041769,-5531.0,0.000144,3]
[404531881,1770255041778,-162.69,0.00014406,2]
[404531882,1770255041786,-500.0,0.00014408,2]
[404531883,1770255041795,-150.4,0.00014506,2]
[404531884,1770255041805,-1273.29157306,0.00014588,2]
[404531885,1770255041814,-923.5689414,0.00014588,2]
[404531886,1770255041823,-220.11108559,0.00014588,2]
[404531887,1770255041832,-1739.60030227,0.00014588,2]
[404531888,1770255041841,-500.91194722,0.000146,2]
[404531889,1770255041850,-500.0,0.000146,2]
[404531890,1770255041859,-162.57292012,0.000146,2]
[404531891,1770255041869,-225.36065254,0.000146,2]
[404531892,1770255041882,-175.96557163,0.000146,2]
[404531893,1770255041891,-500.0,0.000146,2]
[404531894,1770255041901,-500.0,0.000146,2]
[404531895,1770255041910,-500.0,0.000146,2]
[404531896,1770255041919,-500.0,0.000146,2]
[404531897,1770255041929,-500.0,0.000146,2]
[404531898,1770255041938,-500.0,0.000146,2]
[404531899,1770255041947,-170.41847648,0.000146,2]
[404531900,1770255041956,-500.0,0.000146,2]
[404531901,1770255041965,-500.0,0.000146,2]
[404531902,1770255041974,-500.0,0.000146,2]
[404531903,1770255041983,-500.0,0.000146,2]
[404531904,1770255041992,-500.0,0.000146,2]
[404531905,1770255042001,-541.62569807,0.000146,2]
[404531906,1770255042010,-500.0,0.000146,2]
[404531907,1770255042019,-500.0,0.000146,2]
[404531908,1770255042028,-500.0,0.000146,2]
[404531909,1770255042038,-164.18941279,0.000146,2]
[404531910,1770255042047,-168.18354075,0.000146,2]
[404531911,1770255042056,-500.0,0.000146,2]
[404531912,1770255042068,-500.0,0.000146,2]
[404531913,1770255042078,-500.0,0.000146,2]
[404531914,1770255042087,-500.0,0.000146,2]
[404531915,1770255042096,-500.0,0.000146,2]
[404531916,1770255042107,-163.12893393,0.000146,2]
[404531917,1770255042117,-500.0,0.000146,2]
[404531918,1770255042131,-500.0,0.000146,2]
[404531919,1770255042140,-500.0,0.000146,2]
[404531920,1770255042149,-163.95875699,0.000146,2]
[404531921,1770255042159,-500.0,0.000146,2]
[404531922,1770255042168,-500.0,0.000146,2]
[404531923,1770255042177,-500.0,0.000146,2]
[404531924,1770255042186,-500.0,0.000146,2]
[404531925,1770255042196,-500.0,0.000146,2]
[404531926,1770255042205,-225.53944393,0.000146,2]
[404531927,1770255042214,-569.16951839,0.000146,2]
[404531928,1770255042223,-164.75641402,0.000146,2]
[404531929,1770255042232,-500.0,0.000146,2]
[404531930,1770255042240,-500.0,0.000146,2]
[404531931,1770255042249,-500.0,0.000146,2]
[404531932,1770255042258,-500.0,0.000146,2]
[404531933,1770255042267,-500.0,0.000146,2]
[404531934,1770255042276,-500.0,0.000146,2]
[404531935,1770255042285,-166.33572966,0.000146,2]
[404531936,1770255042293,-239.65788203,0.000146,2]
[404531937,1770255042302,-500.0,0.000146,2]
[404531938,1770255042311,-500.0,0.000146,2]
[404531939,1770255042320,-5531.0,0.000146,5]
[404531940,1770255042329,-162.69,0.0001468,2]
[404531941,1770255042340,-500.0,0.00014682,2]
[404531942,1770255042349,-500.0,0.00014682,2]
[404531943,1770255042358,-200.0,0.00014682,2]
[404531944,1770255042367,-200.0,0.00014682,2]
[404531945,1770255042379,-4500.469759,0.00014747,2]
[404531946,1770255042388,-23093.23435408,0.00014791,2]
[404531947,1770255042398,-2200.0,0.000149,5]
[404531948,1770255042408,-162.69,0.00014954,2]
[404531949,1770255042417,-184.960786,0.00014958,7]
[404531950,1770255042429,-152.39,0.00015,2]
[404531951,1770255042438,-773.56,0.00015068,2]
[404531952,1770255042448,-178.59,0.00015068,2]
[404531953,1770255042457,-350.8226805,0.00015102,2]
[404531954,1770255042466,-1000.0,0.00015148,2]
[404531955,1770255042475,-501.31844292,0.00015148,2]
[404531956,1770255042485,-1000.0,0.00015148,2]
[404531957,1770255042494,-543.83910012,0.00015148,2]
[404531958,1770255042503,-1005.56383771,0.00015148,2]
[404531959,1770255042512,-1000.0,0.00015148,2]
[404531960,1770255042521,-1000.0,0.00015148,2]
[404531961,1770255042531,-1000.0,0.00015148,2]
[404531962,1770255042539,-1000.0,0.00015148,2]
[404531963,1770255042549,-1000.0,0.00015148,2]
[404531964,1770255042558,-1000.0,0.00015148,2]
[404531965,1770255042567,-1000.0,0.00015148,2]
[404531966,1770255042575,-1000.0,0.00015148,2]
[404531967,1770255042584,-1000.98442239,0.00015148,2]
[404531968,1770255042593,-1000.0,0.00015148,2]
[404531969,1770255042602,-491.02300655,0.00015148,2]
[404531970,1770255042613,-1000.0,0.00015148,2]
[404531971,1770255042625,-1000.0,0.00015148,2]
[404531972,1770255042634,-1000.0,0.00015148,2]
[404531973,1770255042644,-1000.0,0.00015148,2]
[404531974,1770255042654,-1000.0,0.00015148,2]
[404531975,1770255042664,-460.320419,0.00015148,2]
[404531976,1770255042673,-447.99725278,0.00015148,2]
[404531977,1770255042683,-500.0,0.00015148,2]
[404531978,1770255042692,-1000.0,0.00015148,2]
[404531979,1770255042702,-1000.0,0.00015148,2]
[404531980,1770255042712,-1000.0,0.00015148,2]
[404531981,1770255042721,-259.40505883,0.00015148,2]
[404531982,1770255042731,-1000.0,0.00015148,2]
[404531983,1770255042740,-1000.0,0.00015148,2]
[404531984,1770255042750,-1000.0,0.00015148,2]
[404531985,1770255042759,-245.12319104,0.00015148,2]
[404531986,1770255042769,-656.95111861,0.00015148,2]
[404531987,1770255042778,-510.87393165,0.00015148,2]
[404531988,1770255042787,-1000.0,0.00015148,2]
[404531989,1770255042796,-431.575169,0.00015167,7]
[404531990,1770255042805,-23093.23435408,0.00015226,2]
[404531991,1770255042815,-162.74,0.00015228,2]
[404531992,1770255042824,-287.0,0.00015248,2]
[404531993,1770255042834,-3847.13,0.0001531,2]
[404531994,1770255042843,-9999.99,0.0001531,2]
[404531995,1770255042852,-1320.38,0.0001531,2]
[404531996,1770255042861,-9999.99,0.0001531,2]
[404531997,1770255042870,-9999.99,0.0001531,2]
[404531998,1770255042883,-9999.99,0.0001531,2]
[404531999,1770255042893,-26698.9,0.0001531,2]
[404532000,1770255042902,-5906.63,0.0001531,2]
[404532001,1770255042911,-499.99,0.0001531,2]
[404532002,1770255042921,-3185.89,0.0001531,2]
[404532003,1770255042930,-1609.98,0.0001531,2]
[404532004,1770255042939,-299.99,0.0001531,2]
[404532005,1770255042949,-9999.99,0.0001531,2]
[404532006,1770255042958,-9999.99,0.0001531,2]
[404532007,1770255042968,-14610.22,0.0001531,2]
[404532008,1770255042977,-19041.0,0.0001531,2]
[404532009,1770255042986,-4999.99,0.0001531,2]
[404532010,1770255042996,-1151.0,0.00015323,2]
[404532011,1770255043006,-772.9,0.00015342,2]
[404532012,1770255043015,-4500.469759,0.00015378,2]
[404532013,1770255043025,-302.0,0.00015419,2]
[404532014,1770255043034,-2251.61151783,0.00015593,2]
[404532015,1770255043045,-578.20924308,0.00015636,2]
[404532016,1770255043055,-500.0,0.00015636,2]
[404532017,1770255043067,-174.61919141,0.00015636,2]
[404532018,1770255043078,-500.0,0.00015636,2]
[404532019,1770255043088,-500.0,0.00015636,2]
[404532020,1770255043097,-500.0,0.00015636,2]
[404532021,1770255043108,-500.0,0.00015636,2]
[404532022,1770255043117,-500.0,0.00015636,2]
[404532023,1770255043131,-500.0,0.00015636,2]
[404532024,1770255043143,-500.0,0.00015636,2]
[404532026,1770255043152,-500.0,0.00015636,2]
[404532027,1770255043161,-500.0,0.00015636,2]
[404532028,1770255043171,-500.0,0.00015636,2]
[404532029,1770255043180,-500.0,0.00015636,2]
[404532030,1770255043189,-500.0,0.00015636,2]
[404532031,1770255043198,-209.40437684,0.00015636,2]
[404532032,1770255043207,-743.50770149,0.00015636,2]
[404532033,1770255043216,-500.0,0.00015636,2]
[404532034,1770255043225,-500.0,0.00015636,2]
[404532035,1770255043235,-500.0,0.00015636,2]
[404532036,1770255043244,-500.0,0.00015636,2]
[404532037,1770255043254,-500.0,0.00015636,2]
[404532038,1770255043263,-500.0,0.00015636,2]
[404532039,1770255043273,-500.0,0.00015636,2]
[404532040,1770255043282,-500.0,0.00015636,2]
[404532041,1770255043291,-500.0,0.00015636,2]
[404532042,1770255043301,-322.6107,0.00015636,2]
[404532043,1770255043310,-23093.23435408,0.0001566,2]
[404532044,1770255043319,-217.15233878,0.00015691,2]
[404532045,1770255043329,-1241.63828306,0.00015693,2]
[404532046,1770255043338,-4708.21263554,0.00015693,2]
[404532047,1770255043347,-245.0,0.00015694,3]
[404532048,1770255043356,-1500.0,0.00015696,2]
[404532049,1770255043552,-1500.0,0.00015696,2]
[404532050,1770255043562,-1500.0,0.00015696,2]
[404532051,1770255043571,-5002.38943939,0.00015734,2]
[404532052,1770255043580,-225.18697532,0.00015746,2]
[404532053,1770255043589,-246.47452283,0.0001575,2]
[404532054,1770255043598,-16047.0,0.00015766,2]
[404532055,1770255043607,-233.51889341,0.00015801,2]
[404532056,1770255043616,-1000.0,0.00015831,2]
[404532057,1770255043627,-242.15909246,0.00015856,2]
[404532058,1770255043636,-251.11897888,0.00015911,2]
[404532059,1770255043645,-260.4103811,0.00015966,2]
[404532060,1770255043654,-22335.71176569,0.00015989,2]
[404532061,1770255043663,-189917.0712701,0.00016,4]
[404532062,1770255043673,-4500.469759,0.00016008,2]
[404532063,1770255043682,-270.0455652,0.00016021,2]
[404532064,1770255043691,-150.0,0.00016066,2]
[404532065,1770255043700,-1271.0,0.00016066,2]
[404532066,1770255043709,-917.0,0.00016066,2]
[404532067,1770255043718,-1205.0,0.00016066,2]
[404532068,1770255043727,-616.445,0.00016066,2]
[404532069,1770255043736,-1337.127,0.00016066,2]
[404532070,1770255043746,-3254.0,0.00016066,2]
[404532072,1770255043757,-280.03725112,0.00016076,2]
[404532073,1770255043766,-3046.5072,0.00016093,2]
[404532074,1770255043776,-23093.23435408,0.00016095,2]
[404532075,1770255043785,-27680.2,0.00016116,2]
[404532076,1770255043794,-9999.99,0.00016116,2]
[404532077,1770255043803,-29999.99,0.00016116,2]
[404532078,1770255043812,-290.39862941,0.00016131,2]
[404532079,1770255043821,-181.08010149,0.00016184,2]
[404532080,1770255043830,-771.01748645,0.00016184,2]
[404532081,1770255043839,-301.1433787,0.00016186,2]
[404532082,1770255043848,-5000.00255713,0.000162,5]
[404532083,1770255043857,-2000.0,0.00016244,2]
[404532084,1770255043866,-516.45192786,0.00016244,2]
[404532085,1770255043875,-1500.0,0.00016244,2]
[404532086,1770255043884,-178.59,0.00016438,2]
[404532087,1770255043893,-481.28670728,0.00016451,2]
[404532088,1770255043902,-22335.71176569,0.00016467,2]
[404532089,1770255043912,-23093.23435408,0.0001653,2]
[404532090,1770255043922,-4500.469759,0.00016639,2]
[404532091,1770255043931,-187.78006525,0.00016732,2]
[404532092,1770255043940,-645.68719693,0.00016732,2]
[404532093,1770255043950,-160.0,0.00016737,2]
[404532094,1770255043959,-300.89,0.00016748,2]
[404532095,1770255043968,-2500.0,0.00016792,2]
[404532096,1770255043978,-500.0,0.00016841,2]
[404532097,1770255043987,-500.0,0.00016841,2]
[404532098,1770255043996,-481.28670728,0.00016862,2]
[404532099,1770255044006,-500.0,0.00016877,2]
[404532100,1770255044016,-167.79,0.00016878,2]
[404532101,1770255044025,-22335.71176569,0.00016944,2]
[404532102,1770255044038,-23093.23435408,0.00016965,2]
[404532103,1770255044048,-598088.49905622,0.00017,2]
[404532104,1770255044059,-334.5472959,0.00017005,2]
[404532105,1770255044070,-711.84,0.00017116,2]
[404532106,1770255044080,-160.0,0.00017116,2]
[404532107,1770255044093,-200.57766614,0.00017212,2]
[404532108,1770255044103,-1000.0,0.0001726,2]
[404532109,1770255044113,-4500.469759,0.00017269,2]
[404532110,1770255044122,-481.28670728,0.00017273,2]
[404532111,1770255044134,-194.72792766,0.0001728,2]
[404532112,1770255044144,-5002.38943939,0.00017284,2]
[404532113,1770255044154,-1285.27371838,0.0001734,2]
[404532114,1770255044164,-23093.23435408,0.000174,2]
[404532115,1770255044174,-400.0,0.000174,6]
[404532116,1770255044183,-1000.0,0.00017414,2]
[404532117,1770255044193,-22335.71176569,0.00017422,2]
[404532118,1770255044202,-13523.73022169,0.000175,2]
[404532119,1770255044211,-1607.10450933,0.000175,2]
[404532120,1770255044221,-400.0,0.000175,6]
[404532121,1770255044230,-1000.0,0.00017534,2]
[404532122,1770255044239,-202.90953704,0.00017589,2]
[404532123,1770255044249,-150.0,0.00017589,2]
[404532124,1770255044262,-150.0,0.00017589,2]
[404532125,1770255044271,-500.0,0.00017589,2]
[404532126,1770255044280,-500.0,0.00017589,2]
[404532127,1770255044290,-150.0,0.00017589,2]
[404532128,1770255044299,-400.0,0.000176,6]
[404532129,1770255044308,-202.70297882,0.00017644,2]
[404532130,1770255044318,-150.0,0.00017644,2]
[404532131,1770255044328,-500.0,0.00017644,2]
[404532132,1770255044338,-500.0,0.00017644,2]
[404532133,1770255044347,-206.0798966,0.00017699,2]
[404532134,1770255044358,-212.53145038,0.00017699,2]
[404532135,1770255044367,-500.0,0.00017699,2]
[404532136,1770255044377,-782.86384289,0.000177,2]
[404532137,1770255044387,-400.0,0.000177,6]
[404532138,1770255044396,-500.0,0.00017753,2]
[404532139,1770255044406,-245.0,0.00017795,3]
[404532140,1770255044415,-809.0,0.000178,6]
[404532141,1770255044424,-200.0,0.00017808,2]
[404532142,1770255044433,-500.0,0.00017808,2]
[404532143,1770255044442,-1000.0,0.00017808,2]
[404532144,1770255044451,-201.93286099,0.00017828,2]
[404532145,1770255044461,-2460.0,0.00017831,2]
[404532146,1770255044470,-1002.24586406,0.0001786,2]
[404532147,1770255044479,-500.0,0.00017863,2]
[404532148,1770255044488,-2460.0,0.00017877,2]
[404532149,1770255044497,-500.0,0.00017899,2]
[404532150,1770255044506,-500.0,0.00017899,2]
[404532151,1770255044516,-10000.0,0.000179,2]
[404532152,1770255044525,-33288.2505,0.000179,2]
[404532153,1770255044534,-1000.0,0.000179,2]
[404532154,1770255044544,-246.47452283,0.000179,2]
[404532155,1770255044553,-22335.71176569,0.000179,2]
[404532156,1770255044563,-1241.63828306,0.000179,2]
[404532157,1770255044572,-4500.469759,0.000179,2]
[404532158,1770255044581,-13622.78196958,0.000179,3]
[404532159,1770255044591,-4708.21263554,0.000179,2]
[404532160,1770255044600,-500.0,0.000179,2]
[404532161,1770255044610,-500.0,0.000179,2]
[404532162,1770255044619,-500.0,0.000179,2]
[404532163,1770255044631,-500.0,0.000179,2]
[404532164,1770255044641,-500.0,0.000179,2]
[404532165,1770255044650,-500.0,0.000179,2]
[404532166,1770255044658,-500.0,0.000179,2]
[404532167,1770255044667,-437.44898124,0.000179,2]
[404532168,1770255044676,-2460.0,0.00017909,2]
[404532169,1770255044686,-500.0,0.00017918,2]
[404532170,1770255044695,-2460.0,0.00017922,2]
[404532171,1770255044704,-316.37724837,0.00017948,2]
[404532172,1770255044714,-213.50348778,0.00017973,2]
[404532173,1770255044723,-500.0,0.00017973,2]
[404532174,1770255044733,-500.0,0.00017973,2]
[404532175,1770255044742,-500.0,0.00017973,2]
[404532176,1770255044751,-308.69765385,0.00017973,2]
[404532177,1770255044760,-500.0,0.00017973,2]
[404532178,1770255044770,-500.0,0.00017973,2]
[404532179,1770255044779,-500.0,0.00017973,2]
[404532180,1770255044788,-500.0,0.00017973,2]
[404532181,1770255044798,-500.0,0.00017973,2]
[404532182,1770255044808,-500.0,0.00017973,2]
[404532183,1770255044818,-500.0,0.00017973,2]
[404532184,1770255044828,-500.0,0.00017973,2]
[404532185,1770255044838,-500.0,0.00017973,2]
[404532186,1770255044847,-500.0,0.00017973,2]
[404532187,1770255044857,-500.0,0.00017973,2]
[404532188,1770255044867,-258.92348319,0.00017973,2]
[404532189,1770255044878,-500.0,0.00017973,2]
[404532190,1770255044887,-500.0,0.00017973,2]
[404532191,1770255044897,-500.0,0.00017973,2]
[404532192,1770255044906,-500.0,0.00017973,2]
[404532193,1770255044916,-500.0,0.00017973,2]
[404532194,1770255044925,-500.0,0.00017973,2]
[404532195,1770255044934,-500.0,0.00017973,2]
[404532196,1770255044944,-500.0,0.00017973,2]
[404532197,1770255044953,-500.0,0.00017973,2]
[404532198,1770255044962,-500.0,0.00017973,2]
[404532199,1770255044972,-500.0,0.00017973,2]
[404532200,1770255044983,-500.0,0.00017973,2]
[404532201,1770255044992,-500.0,0.00017973,2]
[404532202,1770255045002,-500.0,0.00017973,2]
[404532203,1770255045011,-500.0,0.00017973,2]
[404532204,1770255045022,-500.0,0.00017973,2]
[404532205,1770255045032,-500.0,0.00017973,2]
[404532206,1770255045042,-500.0,0.00017973,2]
[404532207,1770255045051,-500.0,0.00017973,2]
[404532208,1770255045061,-500.63211416,0.00017973,2]
[404532209,1770255045071,-500.0,0.00017973,2]
[404532210,1770255045085,-500.0,0.00017973,2]
[404532211,1770255045094,-500.0,0.00017973,2]
[404532212,1770255045103,-500.0,0.00017973,2]
[404532213,1770255045113,-500.0,0.00017973,2]
[404532214,1770255045123,-500.0,0.00017973,2]
[404532215,1770255045135,-500.0,0.00017973,2]